fUSD/lending_fUSD_20250609
["ID","MTS","AMOUNT","RATE_DAILY","PERIOD"]
[365158369,1749504638411,-406.8648275,0.00019159,2]
[365158379,1749504638500,-93.1351725,0.00019159,2]
[365158381,1749504638510,-509.78295445,0.00019159,2]
[365158383,1749504638520,-500.0,0.00019159,2]
[365158385,1749504638529,-452.22695105,0.0001916,3]
[365158388,1749504638540,-2527.53335826,0.0001916,3]
[365158391,1749504638561,-5128.04505591,0.0001916,3]
[365158538,1749504640011,-3611.09570923,0.00019086,2]
[365158543,1749504640082,-472.90429077,0.00019086,2]
[365158545,1749504640092,-500.0,0.00019159,2]
[365158547,1749504640102,-500.0,0.00019159,2]
[365158549,1749504640111,-500.0,0.00019159,2]
[365158551,1749504640121,-285825.93322972,0.0001916,3]
[365158553,1749504640130,-1090.92776779,0.0001916,2]
[365158555,1749504640139,-200.0,0.0001916,2]
[365158557,1749504640148,-200.0,0.0001916,2]
[365158559,1749504640158,-3959204.52866263,0.0001916,4]
[365158574,1749504640310,-812.816,0.0001916,4]
[365158581,1749504640367,-465.90194378,0.0001916,4]
[365158583,1749504640378,-32836.60592829,0.0001916,4]
[365158585,1749504640390,-1180.000015,0.0001916,4]
[365158587,1749504640402,-2568.8771593,0.0001916,4]
[365158589,1749504640413,-632.53634995,0.0001916,4]
[365158591,1749504640425,-1068.66534124,0.0001916,4]
[365158663,1749504641236,223.0,0.00017666,2]
[365158830,1749504642723,-448.64550001,0.0001916,4]
[365158834,1749504642734,-505.05999998,0.0001916,4]
[365158838,1749504642745,-4124.9562462,0.0001916,4]
[365158876,1749504642956,-438.39211214,0.0001916,4]
[365158878,1749504642968,-262.9130944,0.0001916,4]
[365159010,1749504645771,-1889.41177642,0.0001916,4]
[365159011,1749504645892,-7924.1688299,0.0001916,4]
[365159012,1749504645958,-6134.50414476,0.0001916,4]
[365159013,1749504645970,-883.28,0.0001916,4]
[365159014,1749504646115,-846.63974395,0.0001916,4]
[365159015,1749504646144,-977772.09715205,0.0001916,4]
[365159016,1749504646154,-150.0,0.00019166,2]
[365159017,1749504646164,-83226.1601004,0.0001917,2]
[365159018,1749504646173,-15327.4448637,0.0001917,2]
[365159019,1749504646182,-104829.8716666,0.0001917,2]
[365159020,1749504646192,-5483.7279493,0.0001917,2]
[365159021,1749504646201,-1000.0,0.00019172,2]
[365159022,1749504646210,-8115.72730168,0.00019172,2]
[365159023,1749504646219,-161.21841605,0.00019173,2]
[365159024,1749504646229,-500.0,0.00019173,2]
[365159025,1749504646239,-500.0,0.00019173,2]
[365159026,1749504646248,-500.0,0.00019173,2]
[365159027,1749504646259,-500.0,0.00019173,2]
[365159028,1749504646268,-500.0,0.00019173,2]
[365159029,1749504646278,-157.32558086,0.00019173,2]
[365159030,1749504646288,-500.0,0.00019173,2]
[365159031,1749504646297,-500.0,0.00019173,2]
[365159032,1749504646309,-500.0,0.00019173,2]
[365159033,1749504646318,-500.0,0.00019173,2]
[365159034,1749504646328,-500.0,0.00019173,2]
[365159035,1749504646337,-500.0,0.00019173,2]
[365159036,1749504646347,-187.12199399,0.00019173,2]
[365159037,1749504646358,-500.0,0.00019173,2]
[365159038,1749504646367,-500.0,0.00019173,2]
[365159039,1749504646378,-500.0,0.00019173,2]
[365159040,1749504646387,-500.0,0.00019173,2]
[365159041,1749504646397,-308.55847749,0.00019173,2]
[365159042,1749504646406,-450.95166881,0.00019176,2]
[365159043,1749504646415,-155.355,0.00019177,2]
[365159044,1749504646425,-669.40882155,0.00019177,2]
[365159045,1749504646435,-560.96,0.00019177,2]
[365159046,1749504646444,-151.0,0.00019178,2]
[365159047,1749504646454,-151.0,0.00019178,2]
[365159048,1749504646463,-151.0,0.00019178,2]
[365159049,1749504646473,-151.0,0.00019178,2]
[365159050,1749504646482,-151.0,0.00019178,2]
[365159051,1749504646491,-151.0,0.00019178,2]
[365159052,1749504646501,-151.0,0.00019178,2]
[365159053,1749504646510,-151.0,0.00019178,2]
[365159054,1749504646520,-151.0,0.00019178,2]
[365159055,1749504646530,-151.0,0.00019178,2]
[365159056,1749504646539,-151.0,0.00019178,2]
[365159057,1749504646549,-151.0,0.00019178,2]
[365159058,1749504646561,-151.0,0.00019178,2]
[365159059,1749504646571,-162.161104,0.00019178,2]
[365159060,1749504646581,-151.0,0.00019178,2]
[365159061,1749504646590,-151.0,0.00019178,2]
[365159062,1749504646599,-151.0,0.00019178,2]
[365159063,1749504646609,-151.0,0.00019178,2]
[365159064,1749504646619,-151.0,0.00019178,2]
[365159065,1749504646629,-151.0,0.00019178,2]
[365159066,1749504646639,-151.0,0.00019178,2]
[365159067,1749504646649,-213.224149,0.00019178,2]
[365159068,1749504646659,-151.0,0.00019178,2]
[365159069,1749504646669,-151.0,0.00019178,2]
[365159071,1749504646678,-151.0,0.00019178,2]
[365159073,1749504646688,-151.0,0.00019178,2]
[365159075,1749504646697,-151.0,0.00019178,2]
[365159077,1749504646707,-151.0,0.00019178,2]
[365159079,1749504646716,-151.0,0.00019178,2]
[365159081,1749504646726,-151.0,0.00019178,2]
[365159083,1749504646735,-177.035261,0.00019178,2]
[365159085,1749504646745,-151.0,0.00019178,2]
[365159087,1749504646755,-151.0,0.00019178,2]
[365159089,1749504646766,-151.0,0.00019178,2]
[365159091,1749504646776,-151.0,0.00019178,2]
[365159092,1749504646786,-151.0,0.00019178,2]
[365159093,1749504646795,-151.0,0.00019178,2]
[365159094,1749504646806,-151.0,0.00019178,2]
[365159095,1749504646815,-151.0,0.00019178,2]
[365159096,1749504646825,-151.0,0.00019178,2]
[365159097,1749504646834,-151.507918,0.00019178,2]
[365159098,1749504646844,-151.0,0.00019178,2]
[365159099,1749504646854,-151.0,0.00019178,2]
[365159100,1749504646864,-151.0,0.00019178,2]
[365159101,1749504646873,-151.0,0.00019178,2]
[365159102,1749504646883,-151.0,0.00019178,2]
[365159103,1749504646892,-170.53758,0.00019178,2]
[365159104,1749504646902,-170.53758,0.00019178,2]
[365159105,1749504646910,-151.0,0.00019178,2]
[365159106,1749504646918,-151.0,0.00019178,2]
[365159107,1749504646926,-151.0,0.00019178,2]
[365159108,1749504646935,-285.450578,0.00019178,2]
[365159109,1749504646944,-151.0,0.00019178,2]
[365159110,1749504646952,-151.0,0.00019178,2]
[365159111,1749504646961,-650.471266,0.00019178,2]
[365159112,1749504646969,-151.0,0.00019178,2]
[365159113,1749504646978,-650.471266,0.00019178,2]
[365159114,1749504646987,-151.0,0.00019178,2]
[365159115,1749504646995,-151.0,0.00019178,2]
[365159116,1749504647008,-151.0,0.00019178,2]
[365159117,1749504647017,-151.0,0.00019178,2]
[365159118,1749504647027,-180.226885,0.00019178,2]
[365159119,1749504647036,-180.226885,0.00019178,2]
[365159120,1749504647046,-151.0,0.00019178,2]
[365159121,1749504647056,-202.368615,0.00019178,2]
[365159122,1749504647065,-202.368615,0.00019178,2]
[365159123,1749504647074,-151.0,0.00019178,2]
[365159124,1749504647084,-151.0,0.00019178,2]
[365159125,1749504647094,-151.0,0.00019178,2]
[365159126,1749504647104,-151.0,0.00019178,2]
[365159127,1749504647113,-223.510934,0.00019178,2]
[365159128,1749504647123,-271.085979,0.00019178,2]
[365159129,1749504647132,-151.0,0.00019178,2]
[365159130,1749504647142,-151.0,0.00019178,2]
[365159131,1749504647152,-151.0,0.00019178,2]
[365159132,1749504647162,-151.0,0.00019178,2]
[365159133,1749504647172,-151.0,0.00019178,2]
[365159134,1749504647182,-1524.628245,0.00019178,2]
[365159135,1749504647191,-228.179865,0.00019178,2]
[365159136,1749504647201,-1524.628245,0.00019178,2]
[365159137,1749504647211,-151.0,0.00019178,2]
[365159138,1749504647220,-151.0,0.00019178,2]
[365159139,1749504647229,-151.0,0.00019178,2]
[365159140,1749504647239,-552.1294,0.00019178,2]
[365159141,1749504647249,-552.1294,0.00019178,2]
[365159142,1749504647258,-916.23866,0.00019178,2]
[365159143,1749504647267,-916.23866,0.00019178,2]
[365159144,1749504647276,-151.0,0.00019178,2]
[365159145,1749504647286,-151.0,0.00019178,2]
[365159146,1749504647296,-151.0,0.00019178,2]
[365159147,1749504647306,-151.0,0.00019178,2]
[365159148,1749504647315,-157.628526,0.00019178,2]
[365159149,1749504647324,-157.628526,0.00019178,2]
[365159150,1749504647334,-172.158316,0.00019178,2]
[365159151,1749504647343,-157.628526,0.00019178,2]
[365159152,1749504647353,-157.628526,0.00019178,2]
[365159153,1749504647363,-299.02,0.00019178,2]
[365159154,1749504647372,-172.158316,0.00019178,2]
[365159155,1749504647382,-299.02,0.00019178,2]
[365159156,1749504647392,-151.0,0.00019178,2]
[365159157,1749504647401,-151.0,0.00019178,2]
[365159158,1749504647411,-157.589398,0.00019178,2]
[365159159,1749504647421,-151.0,0.00019178,2]
[365159160,1749504647431,-156.625017,0.00019178,2]
[365159161,1749504647441,-480.0,0.00019178,2]
[365159162,1749504647451,-490.0,0.00019178,2]
[365159163,1749504647461,-151.0,0.00019178,2]
[365159164,1749504647470,-151.0,0.00019178,2]
[365159165,1749504647480,-235.29566,0.00019178,2]
[365159166,1749504647489,-153.360077,0.00019178,2]
[365159167,1749504647499,-151.0,0.00019178,2]
[365159168,1749504647508,-195.201912,0.00019178,2]
[365159169,1749504647517,-195.201912,0.00019178,2]
[365159170,1749504647527,-195.201912,0.00019178,2]
[365159171,1749504647536,-151.0,0.00019178,2]
[365159172,1749504647545,-243.822624,0.00019178,2]
[365159173,1749504647556,-195.201912,0.00019178,2]
[365159174,1749504647565,-195.201912,0.00019178,2]
[365159175,1749504647574,-195.201912,0.00019178,2]
[365159176,1749504647584,-160.627639,0.00019178,2]
[365159177,1749504647593,-151.0,0.00019178,2]
[365159178,1749504647603,-151.628595,0.00019178,2]
[365159179,1749504647612,-151.0,0.00019178,2]
[365159180,1749504647622,-151.0,0.00019178,2]
[365159181,1749504647632,-490.0,0.00019178,2]
[365159182,1749504647641,-250.0,0.00019178,2]
[365159183,1749504647651,-490.0,0.00019178,2]
[365159184,1749504647661,-490.0,0.00019178,2]
[365159185,1749504647671,-151.0,0.00019178,2]
[365159186,1749504647680,-490.0,0.00019178,2]
[365159187,1749504647689,-490.0,0.00019178,2]
[365159188,1749504647699,-490.0,0.00019178,2]
[365159189,1749504647708,-490.0,0.00019178,2]
[365159190,1749504647718,-150.0,0.00019178,2]
[365159191,1749504647728,-490.0,0.00019178,2]
[365159192,1749504647737,-490.0,0.00019178,2]
[365159193,1749504647747,-151.0,0.00019178,2]
[365159194,1749504647756,-151.0,0.00019178,2]
[365159195,1749504647766,-488.74785984,0.00019178,2]
[365159196,1749504647775,-490.0,0.00019178,2]
[365159197,1749504647785,-208.638087,0.00019178,2]
[365159198,1749504647794,-490.0,0.00019178,2]
[365159199,1749504647803,-151.0,0.00019178,2]
[365159200,1749504647813,-151.0,0.00019178,2]
[365159201,1749504647823,-151.0,0.00019178,2]
[365159202,1749504647832,-500.0,0.00019178,2]
[365159203,1749504647842,-152.622625,0.00019178,2]
[365159204,1749504647851,-490.0,0.00019178,2]
[365159205,1749504647860,-151.0,0.00019178,2]
[365159206,1749504647870,-151.0,0.00019178,2]
[365159207,1749504647879,-490.0,0.00019178,2]
[365159208,1749504647889,-490.63360034,0.00019178,2]
[365159209,1749504647898,-480.0,0.00019178,2]
[365159210,1749504647908,-490.0,0.00019178,2]
[365159211,1749504647918,-490.0,0.00019178,2]
[365159212,1749504647927,-490.0,0.00019178,2]
[365159213,1749504647936,-398.77685492,0.00019178,2]
[365159214,1749504647946,-259.20377793,0.00019178,2]
[365159215,1749504647955,-421.04311941,0.00019178,2]
[365159216,1749504648056,-68.95688059,0.00019178,2]
[365159217,1749504648066,-151.0,0.00019178,2]
[365159218,1749504648076,-151.0,0.00019178,2]
[365159219,1749504648087,-151.0,0.00019178,2]
[365159220,1749504648096,-151.0,0.00019178,2]
[365159221,1749504648107,-151.0,0.00019178,2]
[365159222,1749504648117,-151.0,0.00019178,2]
[365159223,1749504648127,-56.44958861,0.00019178,2]
[365159225,1749504659944,1556.0,0.0002465,120]
[365159226,1749504671773,204.0,0.00017666,2]
[365159227,1749504719348,888.0,0.0002465,120]
[365159228,1749504769926,1004.0,0.00024658,120]
[365159229,1749504779884,635.0,0.0002465,120]
[365159230,1749504795081,500.0,0.00016164,2]
[365159231,1749504797395,500.0,0.00017534,2]
[365159232,1749504813995,500.0,0.00024657,120]
[365159233,1749504839103,574.91530213,0.0002465,120]
[365159234,1749504908107,150.0,0.00017988,7]
[365159235,1749504954776,194.69,0.00016712,2]
[365159236,1749505021990,-163.61,0.00018002,3]
[365159237,1749505022010,-312.03,0.00018002,2]
[365159238,1749505022031,-5101.44,0.00018004,2]
[365159239,1749505022051,-300.0,0.00018005,2]
[365159240,1749505022072,-974.9,0.00018007,2]
[365159241,1749505022092,-250.0,0.00018013,2]
[365159242,1749505022113,-300.0,0.00018288,2]
[365159243,1749505063518,17598.02,0.00018013,2]
[365159244,1749505296151,1000.0,0.00018,2]
[365159245,1749505314306,2404.24516115,0.00018,2]
[365159246,1749505416067,544.7,0.00017928,2]
[365159247,1749505522409,1320.39,0.0001601,2]
[365159248,1749505571682,201.0,0.00017232,2]
[365159249,1749505607172,1000.0,0.00017917,2]
[365159250,1749505680165,294.0,0.0002465,120]
[365159251,1749505739427,1809.0,0.0002465,120]
[365159252,1749505743882,200.0,0.000179,2]
[365159256,1749505799170,387.0,0.0002465,120]
[365159257,1749505811813,6523.96,0.000179,2]
[365159265,1749505831858,-406.59,0.00018006,2]
[365159266,1749505831870,-32.91,0.00018006,2]
[365159267,1749505831882,-126.78768185,0.00018006,2]
[365159269,1749505831891,-141.82231815,0.00018007,2]
[365159272,1749505831919,-108.17768185,0.00018007,2]
[365159273,1749505831929,-427.37,0.00018008,2]
[365159274,1749505831939,-1205.56,0.00018009,2]
[365159275,1749505831950,-3187.99,0.00018013,2]
[365159276,1749505831961,-1320.39,0.00018273,2]
[365159277,1749505831971,-201.0,0.00018301,3]
[365159278,1749505831980,-1200.0,0.00018343,2]
[365159279,1749505831990,-300.0,0.00018343,2]
[365159280,1749505831999,-300.0,0.00018344,2]
[365159281,1749505832009,-1957.856,0.00018345,2]
[365159282,1749505832019,-207.4,0.00018345,2]
[365159283,1749505832029,-3834.17,0.00018356,2]
[365159284,1749505832039,-2030.296672,0.000184,2]
[365159285,1749505832049,-2105.41764886,0.00018455,2]
[365159286,1749505832059,-2183.31810187,0.0001851,2]
[365159287,1749505832068,-817.27693002,0.00018565,2]
[365159288,1749505832078,-300.0,0.000186,6]
[365159289,1749505832087,-326.97696539,0.000187,6]
[365159290,1749505832125,-373.02303461,0.000187,6]
[365159291,1749505832135,-165.94,0.00018708,2]
[365159292,1749505832144,-334.47662734,0.00018767,2]
[365159293,1749505832153,-353.91429446,0.00018794,2]
[365159294,1749505832164,-114.41684854,0.00018794,2]
[365159295,1749505832174,-1000.0,0.000188,6]
[365159296,1749505832183,-1739.0,0.00018826,2]
[365159297,1749505832192,-1177.0,0.00018832,2]
[365159298,1749505832202,-334.47662734,0.00018849,2]
[365159299,1749505832211,-1400.0,0.000189,6]
[365159300,1749505832221,-664.18404427,0.000189,2]
[365159301,1749505832230,-334.47662734,0.00018904,2]
[365159302,1749505832240,-150.0,0.00018913,2]
[365159303,1749505832250,-297.44585251,0.00018926,2]
[365159304,1749505832261,-1577.55414749,0.00018926,2]
[365159305,1749505832271,-150.0,0.00018928,2]
[365159306,1749505832280,-249.14585252,0.00018934,2]
[365159307,1749505832309,-415.03819173,0.00018934,2]
[365159308,1749505832318,-6.52179623,0.00018947,2]
[365159309,1749505832329,-685.11756007,0.00018947,2]
[365159310,1749505832341,-308.3606437,0.00018947,2]
[365159311,1749505832351,-117.24885654,0.00018947,2]
[365159312,1749505832362,-551.40300103,0.00018947,2]
[365159313,1749505832372,-151.0,0.00018947,2]
[365159314,1749505832381,-79.77985208,0.00018947,2]
[365159315,1749505832417,-452.203308,0.00018947,2]
[365159316,1749505832428,-468.01683992,0.00018947,2]
[365159317,1749505832437,-31714.32027277,0.00018948,2]
[365159318,1749505832446,-664.18404425,0.00018969,2]
[365159319,1749505832456,-4909.27822587,0.0001897,2]
[365159320,1749505832466,-1152.93595604,0.0001897,2]
[365159321,1749505832476,-1000.0,0.0001897,2]
[365159322,1749505832485,-150.0,0.00018971,2]
[365159323,1749505832495,-334.47662734,0.00018986,2]
[365159324,1749505832504,-1152.93595603,0.00018993,2]
[365159325,1749505832514,-150.0,0.00018995,2]
[365159326,1749505832524,-250.0,0.00019,2]
[365159327,1749505832533,-664.18404425,0.00019003,2]
[365159328,1749505832543,-1152.93595603,0.00019016,2]
[365159329,1749505832553,-150.0,0.00019016,2]
[365159330,1749505832563,-1000.0,0.00019023,2]
[365159331,1749505832573,-200.0,0.00019025,2]
[365159332,1749505832582,-811.99,0.0001903,2]
[365159333,1749505832591,-881.27692675,0.00019034,2]
[365159334,1749505832768,-150.0,0.00019035,2]
[365159335,1749505832783,-664.18404425,0.00019038,2]
[365159336,1749505832793,-1152.93595603,0.00019039,2]
[365159337,1749505832804,-150.0,0.00019047,2]
[365159338,1749505832813,-170.96828818,0.00019047,2]
[365159339,1749505832821,-811.98,0.0001905,2]
[365159340,1749505832830,-4909.27822583,0.00019055,2]
[365159341,1749505832839,-150.0,0.00019056,2]
[365159342,1749505832847,-268.61,0.0001906,3]
[365159343,1749505832856,-1152.93595603,0.00019062,2]
[365159344,1749505832865,-150.0,0.00019062,2]
[365159345,1749505832878,-334.47662734,0.00019068,2]
[365159346,1749505832887,-500.0,0.00019069,2]
[365159347,1749505832896,-500.0,0.00019069,2]
[365159348,1749505832905,-643.09078925,0.00019069,2]
[365159349,1749505832914,-500.0,0.00019069,2]
[365159350,1749505832924,-500.0,0.00019069,2]
[365159351,1749505832934,-163.13941515,0.00019069,2]
[365159352,1749505832944,-5841.07129859,0.0001907,2]
[365159353,1749505832954,-349.3017,0.0001907,2]
[365159354,1749505832964,-59360.43087747,0.0001907,2]
[365159358,1749505837859,-10981.0,0.0001907,2]
[365159359,1749505837965,-2416.25267056,0.0001907,2]
[365159399,1749505838673,-790.5,0.0001907,2]
[365159401,1749505838685,-5501.5,0.0001907,2]
[365159404,1749505838706,-106560.95335197,0.0001907,2]
[365159406,1749505838715,-1000.0,0.0001907,2]
[365159408,1749505838725,-664.18404425,0.00019072,2]
[365159410,1749505838735,-571.17042488,0.00019078,2]
[365159412,1749505838745,-1152.93595603,0.00019085,2]
[365159414,1749505838754,-150.0,0.00019091,2]
[365159416,1749505838764,-1124.749,0.00019098,2]
[365159418,1749505838773,-664.18404425,0.00019107,2]
[365159420,1749505838783,-1152.93595603,0.00019108,2]
[365159422,1749505838793,-833.29909032,0.00019109,2]
[365159423,1749505838802,-250.0,0.00019122,2]
[365159426,1749505838811,-952.7917526,0.0001913,2]
[365159427,1749505838820,-1152.93595603,0.00019131,2]
[365159430,1749505838830,-200.53982071,0.00019139,2]
[365159431,1749505838840,-271.69131474,0.00019139,2]
[365159434,1749505838850,-500.0,0.00019139,2]
[365159435,1749505838860,-194.29210754,0.00019139,2]
[365159438,1749505838873,-350.97414799,0.00019139,2]
[365159440,1749505838883,-500.0,0.00019139,2]
[365159441,1749505838892,-500.0,0.00019139,2]
[365159443,1749505838902,-500.0,0.00019139,2]
[365159445,1749505838912,-500.0,0.00019139,2]
[365159448,1749505838923,-500.0,0.00019139,2]
[365159449,1749505838932,-500.0,0.00019139,2]
[365159451,1749505838942,-4909.27822583,0.0001914,2]
[365159454,1749505838954,-664.18404425,0.00019141,2]
[365159456,1749505838963,-5841.07129857,0.00019144,2]
[365159458,1749505838972,-150.0,0.00019147,2]
[365159460,1749505838982,-334.47662734,0.00019151,2]
[365159462,1749505838992,-1152.93595603,0.00019154,2]
[365159464,1749505839002,-150.0,0.00019157,2]
[365159466,1749505839012,-1196.0,0.00019165,2]
[365159468,1749505839022,-1196.0,0.00019165,2]
[365159470,1749505839032,-1196.0,0.00019165,2]
[365159472,1749505839042,-1196.0,0.00019165,2]
[365159474,1749505839051,-819.01927643,0.00019165,2]
[365159476,1749505839061,-170.96828815,0.00019169,2]
[365159478,1749505839071,-2337.2584634,0.0001917,2]
[365159480,1749505839080,-132528.7980828,0.0001917,2]
[365159482,1749505839090,-4228.8532637,0.0001917,2]
[365159483,1749505839100,-11321.7550807,0.0001917,2]
[365159485,1749505839109,-24622.56043,0.0001917,2]
[365159487,1749505839119,-499.98649164,0.00019173,2]
[365159489,1749505839128,-500.0,0.00019173,2]
[365159491,1749505839138,-500.0,0.00019173,2]
[365159493,1749505839148,-500.0,0.00019173,2]
[365159495,1749505839157,-500.0,0.00019173,2]
[365159497,1749505839168,-500.0,0.00019173,2]
[365159499,1749505839178,-500.0,0.00019173,2]
[365159502,1749505839188,-500.0,0.00019173,2]
[365159503,1749505839198,-500.0,0.00019173,2]
[365159506,1749505839208,-498.97809826,0.00019173,2]
[365159507,1749505839218,-500.0,0.00019173,2]
[365159509,1749505839227,-500.0,0.00019173,2]
[365159511,1749505839237,-500.0,0.00019173,2]
[365159513,1749505839248,-500.0,0.00019173,2]
[365159515,1749505839257,-212.44081665,0.00019173,2]
[365159517,1749505839267,-500.0,0.00019173,2]
[365159519,1749505839276,-501.86116812,0.00019173,2]
[365159521,1749505839286,-500.0,0.00019173,2]
[365159523,1749505839296,-664.18404425,0.00019176,2]
[365159525,1749505839307,-1152.93595603,0.00019177,2]
[365159527,1749505839316,-151.0,0.00019178,2]
[365159529,1749505839326,-151.0,0.00019178,2]
[365159531,1749505839335,-151.0,0.00019178,2]
[365159533,1749505839345,-160.974462,0.00019178,2]
[365159535,1749505839355,-151.0,0.00019178,2]
[365159537,1749505839364,-151.0,0.00019178,2]
[365159539,1749505839374,-151.0,0.00019178,2]
[365159541,1749505839383,-151.0,0.00019178,2]
[365159543,1749505839393,-151.0,0.00019178,2]
[365159545,1749505839402,-151.0,0.00019178,2]
[365159547,1749505839412,-188.18891,0.00019178,2]
[365159549,1749505839422,-188.18891,0.00019178,2]
[365159551,1749505839431,-188.18891,0.00019178,2]
[365159553,1749505839440,-188.18891,0.00019178,2]
[365159555,1749505839451,-151.0,0.00019178,2]
[365159557,1749505839461,-259.476612,0.00019178,2]
[365159559,1749505839470,-151.0,0.00019178,2]
[365159561,1749505839481,-151.0,0.00019178,2]
[365159563,1749505839490,-152.957611,0.00019178,2]
[365159565,1749505839499,-151.0,0.00019178,2]
[365159567,1749505839510,-324.492742,0.00019178,2]
[365159569,1749505839519,-324.492742,0.00019178,2]
[365159571,1749505839529,-324.492742,0.00019178,2]
[365159573,1749505839538,-324.492742,0.00019178,2]
[365159575,1749505839547,-151.0,0.00019178,2]
[365159577,1749505839556,-151.0,0.00019178,2]
[365159579,1749505839565,-214.452768,0.00019178,2]
[365159580,1749505839575,-214.452768,0.00019178,2]
[365159582,1749505839584,-214.452768,0.00019178,2]
[365159584,1749505839593,-214.452768,0.00019178,2]
[365159586,1749505839602,-214.452768,0.00019178,2]
[365159588,1749505839612,-214.452768,0.00019178,2]
[365159590,1749505839621,-153.997688,0.00019178,2]
[365159592,1749505839630,-151.0,0.00019178,2]
[365159594,1749505839640,-151.0,0.00019178,2]
[365159596,1749505839649,-151.0,0.00019178,2]
[365159598,1749505839658,-151.0,0.00019178,2]
[365159600,1749505839667,-151.0,0.00019178,2]
[365159602,1749505839676,-151.0,0.00019178,2]
[365159604,1749505839686,-151.0,0.00019178,2]
[365159606,1749505839695,-151.0,0.00019178,2]
[365159607,1749505839704,-151.0,0.00019178,2]
[365159609,1749505839713,-151.0,0.00019178,2]
[365159611,1749505839723,-151.0,0.00019178,2]
[365159613,1749505839732,-1253.136228,0.00019178,2]
[365159615,1749505839742,-1253.136228,0.00019178,2]
[365159617,1749505839751,-1253.136228,0.00019178,2]
[365159620,1749505839761,-1253.136228,0.00019178,2]
[365159623,1749505839771,-1253.136228,0.00019178,2]
[365159626,1749505839781,-1253.136228,0.00019178,2]
[365159629,1749505839791,-151.63081,0.00019178,2]
[365159631,1749505839801,-353.126917,0.00019178,2]
[365159633,1749505839813,-353.126917,0.00019178,2]
[365159635,1749505839823,-313.562792,0.00019178,2]
[365159637,1749505839832,-313.562792,0.00019178,2]
[365159639,1749505839841,-151.0,0.00019178,2]
[365159641,1749505839851,-151.0,0.00019178,2]
[365159643,1749505839861,-151.0,0.00019178,2]
[365159645,1749505839872,-247.369644,0.00019178,2]
[365159647,1749505839882,-219.278864,0.00019178,2]
[365159649,1749505839891,-219.278864,0.00019178,2]
[365159652,1749505839901,-219.278864,0.00019178,2]
[365159654,1749505839910,-219.278864,0.00019178,2]
[365159656,1749505839919,-219.278864,0.00019178,2]
[365159658,1749505839929,-219.278864,0.00019178,2]
[365159660,1749505839938,-151.0,0.00019178,2]
[365159662,1749505839948,-892.141764,0.00019178,2]
[365159663,1749505839958,-892.141764,0.00019178,2]
[365159665,1749505839968,-151.0,0.00019178,2]
[365159667,1749505839977,-151.0,0.00019178,2]
[365159669,1749505839987,-151.0,0.00019178,2]
[365159671,1749505839996,-151.0,0.00019178,2]
[365159673,1749505840006,-164.586808,0.00019178,2]
[365159675,1749505840016,-164.586808,0.00019178,2]
[365159677,1749505840025,-207.435276,0.00019178,2]
[365159679,1749505840034,-207.435276,0.00019178,2]
[365159681,1749505840045,-151.0,0.00019178,2]
[365159683,1749505840054,-271.418806,0.00019178,2]
[365159685,1749505840065,-271.418806,0.00019178,2]
[365159687,1749505840075,-314.25261,0.00019178,2]
[365159689,1749505840084,-151.0,0.00019178,2]
[365159691,1749505840094,-314.25261,0.00019178,2]
[365159693,1749505840103,-151.0,0.00019178,2]
[365159695,1749505840113,-150.0,0.00019178,2]